[Event "Late-Titled-Tuesday-Blitz-July-09-2024"]
[Site "Chess.com"]
[Date "2024.07.09"]
[Round "7"]
[White "Horokoskii"]
[Black "NovakRatko"]
[Result "1-0"]
[WhiteElo "2139"]
[BlackElo "2343"]
[TimeControl "180+1"]
[EndTime "15:16:22 PDT"]
[Termination "Horokoskii won on time"]

1. c4 {[%clk 0:03:00.9]} 1... c6 {[%clk 0:01:19]} 2. Nc3 {[%clk 0:02:51.4]} 2...
d5 {[%clk 0:01:18.1]} 3. e3 {[%clk 0:02:48.7]} 3... e5 {[%clk 0:01:17.9]} 4.
cxd5 {[%clk 0:02:45.1]} 4... cxd5 {[%clk 0:01:17.9]} 5. d4 {[%clk 0:02:45.6]}
5... e4 {[%clk 0:01:17.8]} 6. Nge2 {[%clk 0:02:41.4]} 6... Nc6 {[%clk
0:01:10.4]} 7. Nf4 {[%clk 0:02:41.4]} 7... Nf6 {[%clk 0:01:10.4]} 8. Bb5 {[%clk
0:02:38.6]} 8... a6 {[%clk 0:01:06.4]} 9. Bxc6+ {[%clk 0:02:31.7]} 9... bxc6
{[%clk 0:01:06.1]} 10. O-O {[%clk 0:02:32.3]} 10... Bd6 {[%clk 0:01:05.8]} 11.
b3 {[%clk 0:02:23.2]} 11... Bg4 {[%clk 0:01:01.2]} 12. Qc2 {[%clk 0:02:17.1]}
12... O-O {[%clk 0:00:57.3]} 13. Na4 {[%clk 0:02:14.8]} 13... Rc8 {[%clk
0:00:55.7]} 14. h3 {[%clk 0:02:11.4]} 14... Bf5 {[%clk 0:00:49]} 15. Nc5 {[%clk
0:02:00.8]} 15... a5 {[%clk 0:00:45.2]} 16. Ba3 {[%clk 0:01:58.2]} 16... a4
{[%clk 0:00:46.1]} 17. bxa4 {[%clk 0:01:53.5]} 17... g5 {[%clk 0:00:44.2]} 18.
Nb7 {[%clk 0:01:46.4]} 18... Bxa3 {[%clk 0:00:32.1]} 19. Nxd8 {[%clk 0:01:45]}
19... Rfxd8 {[%clk 0:00:29.8]} 20. Ne2 {[%clk 0:01:38.4]} 20... g4 {[%clk
0:00:29.7]} 21. Ng3 {[%clk 0:01:36.3]} 21... Be6 {[%clk 0:00:27.4]} 22. hxg4
{[%clk 0:01:35.8]} 22... Nxg4 {[%clk 0:00:27]} 23. Qb3 {[%clk 0:01:32.4]} 23...
Bd6 {[%clk 0:00:25.6]} 24. a5 {[%clk 0:01:30.5]} 24... Ra8 {[%clk 0:00:24.5]}
25. Qc3 {[%clk 0:01:26.3]} 25... Ra6 {[%clk 0:00:19.4]} 26. Rab1 {[%clk
0:01:17.5]} 26... Bc7 {[%clk 0:00:18.9]} 27. Rb7 {[%clk 0:01:09.4]} 27... Bxa5
{[%clk 0:00:18.2]} 28. Qb2 {[%clk 0:01:09.4]} 28... Raa8 {[%clk 0:00:13.8]} 29.
Rb1 {[%clk 0:01:06.3]} 29... Bc8 {[%clk 0:00:09.2]} 30. Rb8 {[%clk 0:01:01]}
30... Be6 {[%clk 0:00:05.9]} 31. Rxd8+ {[%clk 0:00:58.2]} 31... Rxd8 {[%clk
0:00:05.7]} 32. Ne2 {[%clk 0:00:58.5]} 32... Bc7 {[%clk 0:00:04.4]} 33. Nf4
{[%clk 0:00:57.7]} 33... Bxf4 {[%clk 0:00:03.5]} 34. exf4 {[%clk 0:00:58.6]}
34... e3 {[%clk 0:00:03.3]} 35. fxe3 {[%clk 0:00:53.3]} 35... Nxe3 {[%clk
0:00:03.7]} 36. Qf2 {[%clk 0:00:46.8]} 36... Nf5 {[%clk 0:00:01.9]} 37. g4
{[%clk 0:00:44.3]} 37... Nd6 {[%clk 0:00:01.6]} 38. f5 {[%clk 0:00:44.3]} 38...
Ne4 {[%clk 0:00:02]} 39. Qf4 {[%clk 0:00:40.9]} 39... Bd7 {[%clk 0:00:02.2]} 40.
Rb8 {[%clk 0:00:40.1]} 40... Rxb8 {[%clk 0:00:01.7]} 41. Qxb8+ {[%clk
0:00:40.8]} 41... Kg7 {[%clk 0:00:02.3]} 42. a4 {[%clk 0:00:40.7]} 42... Kf6
{[%clk 0:00:02.1]} 43. a5 {[%clk 0:00:40.2]} 1-0

[Event "Late-Titled-Tuesday-Blitz-July-09-2024"]
[Site "Chess.com"]
[Date "2024.07.09"]
[Round "7"]
[White "bazar-wokzal"]
[Black "KaydenTroffChess"]
[Result "1/2-1/2"]
[WhiteElo "2649"]
[BlackElo "2869"]
[TimeControl "180+1"]
[EndTime "15:16:24 PDT"]
[Termination "Game drawn by repetition"]

1. e4 {[%clk 0:03:00.9]} 1... c5 {[%clk 0:02:58.8]} 2. c3 {[%clk 0:02:59.7]}
2... g6 {[%clk 0:02:58.5]} 3. d4 {[%clk 0:02:59.5]} 3... cxd4 {[%clk 0:02:58.4]}
4. cxd4 {[%clk 0:02:59.8]} 4... d5 {[%clk 0:02:58.1]} 5. e5 {[%clk 0:03:00.1]}
5... Bg7 {[%clk 0:02:57.9]} 6. Nc3 {[%clk 0:03:00.4]} 6... Nc6 {[%clk
0:02:53.9]} 7. Bf4 {[%clk 0:02:59.9]} 7... Nh6 {[%clk 0:02:49.2]} 8. Qd2 {[%clk
0:02:59]} 8... Nf5 {[%clk 0:02:47.9]} 9. Nf3 {[%clk 0:02:59.2]} 9... h5 {[%clk
0:02:46.2]} 10. O-O-O {[%clk 0:02:58.9]} 10... Qa5 {[%clk 0:02:29.8]} 11. Kb1
{[%clk 0:02:58.3]} 11... Bd7 {[%clk 0:02:28]} 12. h3 {[%clk 0:02:56.3]} 12...
Rc8 {[%clk 0:02:14.8]} 13. Be2 {[%clk 0:02:54.6]} 13... h4 {[%clk 0:02:08.1]}
14. g4 {[%clk 0:02:54.6]} 14... hxg3 {[%clk 0:02:08]} 15. fxg3 {[%clk 0:02:55]}
15... Nxg3 {[%clk 0:01:17.4]} 16. Bxg3 {[%clk 0:02:45.8]} 16... Nb4 {[%clk
0:01:17.4]} 17. Ka1 {[%clk 0:02:23.5]} 17... Bf5 {[%clk 0:01:06.4]} 18. Bb5+
{[%clk 0:01:57.2]} 18... Kf8 {[%clk 0:01:05.5]} 19. Ba4 {[%clk 0:01:57.1]} 19...
Bh6 {[%clk 0:00:51.2]} 20. Qf2 {[%clk 0:01:41.3]} 20... Bc2 {[%clk 0:00:14.9]}
21. Bxc2 {[%clk 0:01:35.4]} 21... Rxc3 {[%clk 0:00:14.7]} 22. Bb1 {[%clk
0:01:28.7]} 22... Rc6 {[%clk 0:00:08.8]} 23. e6 {[%clk 0:01:15]} 23... f6 {[%clk
0:00:07.1]} 24. Ne5 {[%clk 0:01:09.5]} 24... Ra6 {[%clk 0:00:05.4]} 25. a3
{[%clk 0:00:59.7]} 25... Qa4 {[%clk 0:00:03]} 26. Nxg6+ {[%clk 0:00:54.7]} 26...
Ke8 {[%clk 0:00:03.7]} 27. Nxh8 {[%clk 0:00:52.4]} 27... Qb3 {[%clk 0:00:04]}
28. Rhg1 {[%clk 0:00:17.8]} 28... Be3 {[%clk 0:00:04]} 29. Qe2 {[%clk
0:00:14.1]} 29... Rxa3+ {[%clk 0:00:03.7]} 30. bxa3 {[%clk 0:00:13.2]} 30...
Qxa3+ {[%clk 0:00:04.2]} 31. Ba2 {[%clk 0:00:13.3]} 31... Qc3+ {[%clk
0:00:04.6]} 32. Qb2 {[%clk 0:00:13.1]} 32... Nc2+ {[%clk 0:00:05.3]} 33. Kb1
{[%clk 0:00:12.8]} 33... Na3+ {[%clk 0:00:06]} 34. Ka1 {[%clk 0:00:11.8]} 34...
Nc2+ {[%clk 0:00:05.8]} 35. Kb1 {[%clk 0:00:07.3]} 35... Na3+ {[%clk 0:00:06.7]}
36. Ka1 {[%clk 0:00:07.6]} 36... Nc2+ {[%clk 0:00:06.8]} 1/2-1/2

[Event "Late-Titled-Tuesday-Blitz-July-09-2024"]
[Site "Chess.com"]
[Date "2024.07.09"]
[Round "7"]
[White "MusicCityMaster"]
[Black "Stanbad1"]
[Result "0-1"]
[WhiteElo "2509"]
[BlackElo "2641"]
[TimeControl "180+1"]
[EndTime "15:16:27 PDT"]
[Termination "Stanbad1 won on time"]

1. e4 {[%clk 0:03:00.9]} 1... e6 {[%clk 0:02:59.9]} 2. d4 {[%clk 0:03:00.3]}
2... d5 {[%clk 0:03:00.4]} 3. e5 {[%clk 0:03:01]} 3... c5 {[%clk 0:03:00.4]} 4.
c3 {[%clk 0:03:01.9]} 4... Nc6 {[%clk 0:03:00.3]} 5. Nf3 {[%clk 0:03:02.6]} 5...
Bd7 {[%clk 0:03:00.4]} 6. Bd3 {[%clk 0:03:03.3]} 6... cxd4 {[%clk 0:03:00.3]} 7.
O-O {[%clk 0:03:04]} 7... Rc8 {[%clk 0:03:00.6]} 8. Re1 {[%clk 0:03:03]} 8...
dxc3 {[%clk 0:03:00]} 9. Nxc3 {[%clk 0:03:02.5]} 9... Bc5 {[%clk 0:03:00.5]} 10.
a3 {[%clk 0:02:58.2]} 10... a6 {[%clk 0:02:51.8]} 11. h4 {[%clk 0:02:51.6]}
11... Nge7 {[%clk 0:02:49]} 12. h5 {[%clk 0:02:51.5]} 12... h6 {[%clk
0:02:49.5]} 13. Bf4 {[%clk 0:02:42.4]} 13... b5 {[%clk 0:02:48.3]} 14. Rc1
{[%clk 0:02:38.7]} 14... Qb6 {[%clk 0:02:47.7]} 15. Bg3 {[%clk 0:02:35.1]} 15...
O-O {[%clk 0:02:46.8]} 16. Bb1 {[%clk 0:02:17.4]} 16... Rfd8 {[%clk 0:02:42.3]}
17. Ne2 {[%clk 0:01:51.9]} 17... Nf5 {[%clk 0:02:36.9]} 18. Bxf5 {[%clk
0:01:47.5]} 18... exf5 {[%clk 0:02:37.8]} 19. Qxd5 {[%clk 0:01:30.7]} 19... Ne7
{[%clk 0:02:36.9]} 20. Qd2 {[%clk 0:01:07.3]} 20... Be6 {[%clk 0:02:35.4]} 21.
Qf4 {[%clk 0:00:57.7]} 21... Nd5 {[%clk 0:02:34.6]} 22. Qh4 {[%clk 0:00:52.7]}
22... Be7 {[%clk 0:02:34.3]} 23. Qh2 {[%clk 0:00:49.7]} 23... b4 {[%clk
0:02:28.2]} 24. a4 {[%clk 0:00:43]} 24... a5 {[%clk 0:02:26.8]} 25. Ned4 {[%clk
0:00:42.7]} 25... Bc5 {[%clk 0:02:21.8]} 26. Nb5 {[%clk 0:00:35.2]} 26... f4
{[%clk 0:02:20.2]} 27. Bh4 {[%clk 0:00:35.3]} 27... Re8 {[%clk 0:02:11.2]} 28.
Nd2 {[%clk 0:00:33]} 28... Nc7 {[%clk 0:02:02.2]} 29. Qxf4 {[%clk 0:00:26.2]}
29... Nxb5 {[%clk 0:01:56.8]} 30. axb5 {[%clk 0:00:27.1]} 30... Qxb5 {[%clk
0:01:57]} 31. Ne4 {[%clk 0:00:27.5]} 31... Bf8 {[%clk 0:01:56.2]} 32. Qg3 {[%clk
0:00:23.4]} 32... Kh7 {[%clk 0:01:53]} 33. Rxc8 {[%clk 0:00:18.1]} 33... Rxc8
{[%clk 0:01:51.1]} 34. Qf4 {[%clk 0:00:17.8]} 34... a4 {[%clk 0:01:47.7]} 35.
Re3 {[%clk 0:00:14.3]} 35... a3 {[%clk 0:01:43.9]} 36. bxa3 {[%clk 0:00:13.3]}
36... b3 {[%clk 0:01:44.5]} 37. Nd2 {[%clk 0:00:12.1]} 37... b2 {[%clk
0:01:43.4]} 38. Qe4+ {[%clk 0:00:12.4]} 38... Kg8 {[%clk 0:01:42.6]} 39. Rg3
{[%clk 0:00:12.5]} 39... Rc1+ {[%clk 0:01:42]} 40. Kh2 {[%clk 0:00:12.5]} 40...
b1=Q {[%clk 0:01:41.2]} 41. Nxb1 {[%clk 0:00:13.1]} 41... Qxb1 {[%clk
0:01:41.6]} 42. Qxb1 {[%clk 0:00:11.4]} 42... Rxb1 {[%clk 0:01:42.5]} 43. f4
{[%clk 0:00:11.1]} 43... Ra1 {[%clk 0:01:41.1]} 44. Rd3 {[%clk 0:00:09.8]} 44...
Bxa3 {[%clk 0:01:40.1]} 45. Rd8+ {[%clk 0:00:09.7]} 45... Kh7 {[%clk 0:01:40.3]}
46. g4 {[%clk 0:00:10.3]} 46... Bxg4 {[%clk 0:01:40.3]} 47. Kg3 {[%clk
0:00:10.1]} 47... Be6 {[%clk 0:01:40.5]} 48. Kf3 {[%clk 0:00:10]} 48... Rh1
{[%clk 0:01:40.1]} 49. Bg3 {[%clk 0:00:08.8]} 49... Rxh5 {[%clk 0:01:40.1]} 50.
Ke4 {[%clk 0:00:08.9]} 50... Rh3 {[%clk 0:01:40.1]} 51. Bf2 {[%clk 0:00:08.4]}
51... g6 {[%clk 0:01:37.9]} 52. Ra8 {[%clk 0:00:06.1]} 52... Bb4 {[%clk
0:01:34.9]} 53. Bb6 {[%clk 0:00:05]} 53... Bf5+ {[%clk 0:01:34.8]} 54. Kd4
{[%clk 0:00:05.5]} 54... Rd3+ {[%clk 0:01:35]} 55. Kc4 {[%clk 0:00:06.1]} 55...
Be7 {[%clk 0:01:35]} 56. Ra7 {[%clk 0:00:06.1]} 56... Bh4 {[%clk 0:01:30.6]} 57.
Rxf7+ {[%clk 0:00:06.2]} 57... Kg8 {[%clk 0:01:31.2]} 58. Ra7 {[%clk 0:00:05.9]}
58... Rd7 {[%clk 0:01:30.3]} 59. Bd4 {[%clk 0:00:05.4]} 59... Rxa7 {[%clk
0:01:30.1]} 60. Bxa7 {[%clk 0:00:06.1]} 60... Kf7 {[%clk 0:01:30.7]} 61. Kd5
{[%clk 0:00:06.2]} 61... Be6+ {[%clk 0:01:31]} 62. Kd6 {[%clk 0:00:06.7]} 62...
Ba2 {[%clk 0:01:31.4]} 63. Be3 {[%clk 0:00:06.7]} 63... Be7+ {[%clk 0:01:31.6]}
64. Kd7 {[%clk 0:00:06.4]} 64... h5 {[%clk 0:01:32.2]} 65. Bf2 {[%clk
0:00:05.2]} 65... Bb3 {[%clk 0:01:32.3]} 66. Kc6 {[%clk 0:00:04.6]} 66... Ke6
{[%clk 0:01:32.4]} 67. Kc7 {[%clk 0:00:03.5]} 67... Kf5 {[%clk 0:01:32.6]} 68.
Kd7 {[%clk 0:00:04.1]} 68... Ba3 {[%clk 0:01:32.2]} 69. Be3 {[%clk 0:00:04.6]}
69... h4 {[%clk 0:01:32.3]} 70. Ke8 {[%clk 0:00:04.5]} 70... h3 {[%clk
0:01:32.3]} 0-1

[Event "Late-Titled-Tuesday-Blitz-July-09-2024"]
[Site "Chess.com"]
[Date "2024.07.09"]
[Round "7"]
[White "yaguigor"]
[Black "temus_galaktionov"]
[Result "0-1"]
[WhiteElo "2624"]
[BlackElo "2836"]
[TimeControl "180+1"]
[EndTime "15:16:28 PDT"]
[Termination "temus_galaktionov won on time"]

1. e4 {[%clk 0:03:00.9]} 1... c6 {[%clk 0:03:00.9]} 2. d4 {[%clk 0:03:00.2]}
2... g6 {[%clk 0:03:01]} 3. c4 {[%clk 0:02:59]} 3... Bg7 {[%clk 0:03:01.3]} 4.
Nc3 {[%clk 0:02:59]} 4... d6 {[%clk 0:03:00.3]} 5. f4 {[%clk 0:02:55.4]} 5...
Nd7 {[%clk 0:03:00.2]} 6. e5 {[%clk 0:02:51.7]} 6... Nh6 {[%clk 0:02:57.2]} 7.
Nf3 {[%clk 0:02:50.3]} 7... O-O {[%clk 0:02:55.6]} 8. Be2 {[%clk 0:02:43.1]}
8... dxe5 {[%clk 0:02:55.6]} 9. fxe5 {[%clk 0:02:38.4]} 9... c5 {[%clk
0:02:55.8]} 10. d5 {[%clk 0:02:36.9]} 10... Ng4 {[%clk 0:02:54.6]} 11. e6 {[%clk
0:02:35.2]} 11... fxe6 {[%clk 0:02:54.5]} 12. h3 {[%clk 0:02:16.5]} 12... Nge5
{[%clk 0:01:53.3]} 13. dxe6 {[%clk 0:02:13.2]} 13... Nb6 {[%clk 0:01:53.4]} 14.
Qxd8 {[%clk 0:01:53.9]} 14... Rxd8 {[%clk 0:01:54.3]} 15. Bg5 {[%clk 0:01:53.3]}
15... Bxe6 {[%clk 0:01:49.5]} 16. Bxe7 {[%clk 0:01:51]} 16... Re8 {[%clk
0:01:48.3]} 17. Bxc5 {[%clk 0:01:50.9]} 17... Nxf3+ {[%clk 0:01:47.7]} 18. Bxf3
{[%clk 0:01:47.9]} 18... Nxc4 {[%clk 0:01:40.8]} 19. O-O-O {[%clk 0:01:43]}
19... Rac8 {[%clk 0:01:34.5]} 20. Bd4 {[%clk 0:01:42.1]} 20... Bh6+ {[%clk
0:01:34.4]} 21. Kc2 {[%clk 0:01:35.3]} 21... Bf5+ {[%clk 0:01:27.7]} 22. Kb3
{[%clk 0:01:30.5]} 22... Nd2+ {[%clk 0:01:27.6]} 23. Ka3 {[%clk 0:00:42.3]}
23... Nxf3 {[%clk 0:01:22.1]} 24. gxf3 {[%clk 0:00:41.2]} 24... Kf7 {[%clk
0:01:17]} 25. h4 {[%clk 0:00:37]} 25... Bf8+ {[%clk 0:01:15.5]} 26. Kb3 {[%clk
0:00:36.5]} 26... a6 {[%clk 0:01:11]} 27. a4 {[%clk 0:00:34.6]} 27... h5 {[%clk
0:01:06.6]} 28. Rhe1 {[%clk 0:00:29]} 28... Rxe1 {[%clk 0:01:02.9]} 29. Rxe1
{[%clk 0:00:29.9]} 29... Be7 {[%clk 0:01:03.2]} 30. Bf2 {[%clk 0:00:28.7]} 30...
Be6+ {[%clk 0:01:01.1]} 31. Kc2 {[%clk 0:00:28.2]} 31... Rc4 {[%clk 0:01:00.7]}
32. Kd3 {[%clk 0:00:17.7]} 32... Rb4 {[%clk 0:00:57.8]} 33. Bd4 {[%clk 0:00:15]}
33... Bxh4 {[%clk 0:00:55.8]} 34. Rg1 {[%clk 0:00:14.1]} 34... Rxb2 {[%clk
0:00:52.6]} 35. Ne4 {[%clk 0:00:12.6]} 35... Rb3+ {[%clk 0:00:52.4]} 36. Kc2
{[%clk 0:00:09.9]} 36... Be7 {[%clk 0:00:50.1]} 37. Bc5 {[%clk 0:00:08.4]} 37...
Rxf3 {[%clk 0:00:46.3]} 38. Bxe7 {[%clk 0:00:08.1]} 38... Kxe7 {[%clk
0:00:47.2]} 39. Ng5 {[%clk 0:00:07.8]} 39... Bf5+ {[%clk 0:00:44.5]} 40. Kd2
{[%clk 0:00:06.2]} 40... Rd3+ {[%clk 0:00:43.5]} 41. Ke2 {[%clk 0:00:06]} 41...
Ra3 {[%clk 0:00:39.4]} 42. Re1 {[%clk 0:00:03.1]} 42... Kf6 {[%clk 0:00:37.2]}
43. Nh7+ {[%clk 0:00:01.8]} 43... Ke5 {[%clk 0:00:35.8]} 44. Kf2+ {[%clk
0:00:01.4]} 44... Kf4 {[%clk 0:00:36]} 45. Nf6 {[%clk 0:00:01.5]} 45... Ra2+
{[%clk 0:00:35.4]} 46. Kg1 {[%clk 0:00:01.1]} 46... Rxa4 {[%clk 0:00:35]} 0-1

[Event "Late-Titled-Tuesday-Blitz-July-09-2024"]
[Site "Chess.com"]
[Date "2024.07.09"]
[Round "7"]
[White "GAO"]
[Black "AlexZambrano"]
[Result "1-0"]
[WhiteElo "2442"]
[BlackElo "2332"]
[TimeControl "180+1"]
[EndTime "15:16:28 PDT"]
[Termination "GAO won on time"]

1. e4 {[%clk 0:03:00.9]} 1... d5 {[%clk 0:02:58.9]} 2. exd5 {[%clk 0:03:00.1]}
2... Nf6 {[%clk 0:02:57.1]} 3. d4 {[%clk 0:02:59.4]} 3... Bg4 {[%clk 0:02:56.1]}
4. Nf3 {[%clk 0:02:57.8]} 4... Qxd5 {[%clk 0:02:53.4]} 5. Nc3 {[%clk 0:02:57.4]}
5... Qh5 {[%clk 0:02:50.5]} 6. h3 {[%clk 0:02:50.8]} 6... Nc6 {[%clk 0:02:49]}
7. Bb5 {[%clk 0:02:50.7]} 7... Bxf3 {[%clk 0:02:41.8]} 8. Qxf3 {[%clk
0:02:48.5]} 8... Qxf3 {[%clk 0:02:42.2]} 9. gxf3 {[%clk 0:02:49.4]} 9... O-O-O
{[%clk 0:02:38.3]} 10. Bxc6 {[%clk 0:02:49.1]} 10... bxc6 {[%clk 0:02:39.2]} 11.
Ne2 {[%clk 0:02:48.6]} 11... e6 {[%clk 0:02:36.2]} 12. c3 {[%clk 0:02:45.6]}
12... c5 {[%clk 0:02:34.8]} 13. Be3 {[%clk 0:02:40.3]} 13... Nd5 {[%clk
0:02:31]} 14. Bg5 {[%clk 0:02:35.6]} 14... f6 {[%clk 0:02:28.1]} 15. Bd2 {[%clk
0:02:36.1]} 15... Bd6 {[%clk 0:02:17.9]} 16. O-O-O {[%clk 0:02:30.6]} 16... Rhe8
{[%clk 0:02:14.9]} 17. Rhg1 {[%clk 0:02:29.9]} 17... Rd7 {[%clk 0:02:10.9]} 18.
Rg4 {[%clk 0:02:21.4]} 18... e5 {[%clk 0:02:07.1]} 19. Rdg1 {[%clk 0:02:11.7]}
19... exd4 {[%clk 0:02:00.9]} 20. Ng3 {[%clk 0:02:05.9]} 20... dxc3 {[%clk
0:01:54.2]} 21. bxc3 {[%clk 0:02:06.8]} 21... g6 {[%clk 0:01:37.2]} 22. Ne4
{[%clk 0:02:02.6]} 22... Be7 {[%clk 0:01:11.9]} 23. R4g2 {[%clk 0:01:52.3]}
23... f5 {[%clk 0:01:08.8]} 24. Ng3 {[%clk 0:01:49.1]} 24... Bf6 {[%clk
0:01:05.7]} 25. Kc2 {[%clk 0:01:48]} 25... c4 {[%clk 0:00:56.2]} 26. Rb1 {[%clk
0:01:38.7]} 26... h5 {[%clk 0:00:39.5]} 27. Re1 {[%clk 0:01:18.1]} 27... Rde7
{[%clk 0:00:35.9]} 28. Rxe7 {[%clk 0:01:11.4]} 28... Rxe7 {[%clk 0:00:36.8]} 29.
Nf1 {[%clk 0:01:11.5]} 29... Re2 {[%clk 0:00:30.8]} 30. Kd1 {[%clk 0:01:09]}
30... Re6 {[%clk 0:00:25.3]} 31. Rxg6 {[%clk 0:01:03.3]} 31... Ra6 {[%clk
0:00:21.9]} 32. Ne3 {[%clk 0:01:00.5]} 32... Nxe3+ {[%clk 0:00:19.2]} 33. fxe3
{[%clk 0:00:58.9]} 33... Kd7 {[%clk 0:00:16.7]} 34. e4 {[%clk 0:00:57.3]} 34...
fxe4 {[%clk 0:00:15.1]} 35. fxe4 {[%clk 0:00:58.2]} 35... Rb6 {[%clk 0:00:11.6]}
36. Kc2 {[%clk 0:00:53.3]} 36... Be5 {[%clk 0:00:08.8]} 37. Rxb6 {[%clk
0:00:51.1]} 37... axb6 {[%clk 0:00:08.8]} 38. Kd1 {[%clk 0:00:44]} 38... Ke6
{[%clk 0:00:09.7]} 39. Ke2 {[%clk 0:00:44.2]} 39... Kf6 {[%clk 0:00:07.9]} 40.
Kf3 {[%clk 0:00:44.2]} 40... c5 {[%clk 0:00:06.1]} 41. Be1 {[%clk 0:00:40]}
41... b5 {[%clk 0:00:05.4]} 42. Bh4+ {[%clk 0:00:39.6]} 42... Ke6 {[%clk
0:00:04.2]} 43. Be1 {[%clk 0:00:40.5]} 43... Bd6 {[%clk 0:00:02.6]} 44. Bd2
{[%clk 0:00:36.5]} 44... b4 {[%clk 0:00:02.3]} 45. Ke3 {[%clk 0:00:31.5]} 45...
b3 {[%clk 0:00:01.4]} 46. axb3 {[%clk 0:00:32.1]} 46... cxb3 {[%clk 0:00:02.3]}
47. Bc1 {[%clk 0:00:32.4]} 47... c4 {[%clk 0:00:01.4]} 48. Kd4 {[%clk
0:00:32.5]} 1-0

[Event "Late-Titled-Tuesday-Blitz-July-09-2024"]
[Site "Chess.com"]
[Date "2024.07.09"]
[Round "7"]
[White "scrambleyourbrain"]
[Black "falzehope0"]
[Result "1-0"]
[WhiteElo "2367"]
[BlackElo "2455"]
[TimeControl "180+1"]
[EndTime "15:16:32 PDT"]
[Termination "scrambleyourbrain won by checkmate"]

1. e4 {[%clk 0:03:00.9]} 1... d5 {[%clk 0:02:52.9]} 2. exd5 {[%clk 0:03:00.4]}
2... Nf6 {[%clk 0:02:52.7]} 3. d4 {[%clk 0:02:56.8]} 3... Qxd5 {[%clk
0:02:52.5]} 4. Nf3 {[%clk 0:02:56.4]} 4... Bg4 {[%clk 0:02:49.3]} 5. Be2 {[%clk
0:02:54.7]} 5... Nc6 {[%clk 0:02:47.4]} 6. c3 {[%clk 0:02:54.2]} 6... O-O-O
{[%clk 0:02:46.9]} 7. Qb3 {[%clk 0:02:48.2]} 7... Qh5 {[%clk 0:02:40.8]} 8. Bf4
{[%clk 0:02:41.6]} 8... Nd5 {[%clk 0:02:35.5]} 9. Bg3 {[%clk 0:02:40.9]} 9... f6
{[%clk 0:02:28.2]} 10. h3 {[%clk 0:02:40.6]} 10... e5 {[%clk 0:02:23.8]} 11.
dxe5 {[%clk 0:02:33.8]} 11... fxe5 {[%clk 0:02:18.9]} 12. Qa4 {[%clk 0:02:30.1]}
12... Bxf3 {[%clk 0:01:42.2]} 13. Bxf3 {[%clk 0:02:29.7]} 13... Qf7 {[%clk
0:01:31]} 14. Nd2 {[%clk 0:02:20.7]} 14... Bc5 {[%clk 0:01:25.5]} 15. O-O-O
{[%clk 0:02:15.4]} 15... Nb6 {[%clk 0:01:18]} 16. Qg4+ {[%clk 0:02:05.5]} 16...
Kb8 {[%clk 0:01:13.8]} 17. Nb3 {[%clk 0:02:05.4]} 17... Bd6 {[%clk 0:01:02.8]}
18. Bxc6 {[%clk 0:01:56.4]} 18... bxc6 {[%clk 0:01:02.3]} 19. Na5 {[%clk
0:01:57.1]} 19... Qxa2 {[%clk 0:00:52.5]} 20. Nxc6+ {[%clk 0:01:56.8]} 20... Kb7
{[%clk 0:00:42.5]} 21. Nxd8+ {[%clk 0:01:56.7]} 21... Rxd8 {[%clk 0:00:41.5]}
22. Qe4+ {[%clk 0:01:55.2]} 22... c6 {[%clk 0:00:40.6]} 23. Qxh7 {[%clk
0:01:52.2]} 23... Na4 {[%clk 0:00:28.5]} 24. Qb1 {[%clk 0:01:43.1]} 24... Qg8
{[%clk 0:00:20.9]} 25. Qc2 {[%clk 0:01:40.5]} 25... Nc5 {[%clk 0:00:19.9]} 26.
Kb1 {[%clk 0:01:38.2]} 26... Nb3 {[%clk 0:00:19.6]} 27. Bxe5 {[%clk 0:01:33.1]}
27... Bc7 {[%clk 0:00:17.8]} 28. Bxc7 {[%clk 0:01:32.7]} 28... Kxc7 {[%clk
0:00:18.7]} 29. Rxd8 {[%clk 0:01:32.1]} 29... Kxd8 {[%clk 0:00:19.6]} 30. Rd1+
{[%clk 0:01:32.3]} 30... Kc7 {[%clk 0:00:20.2]} 31. Qd3 {[%clk 0:01:31.1]} 31...
Qf7 {[%clk 0:00:18.5]} 32. Qd6+ {[%clk 0:01:25.6]} 32... Kb6 {[%clk 0:00:16.4]}
33. Qd8+ {[%clk 0:01:23.2]} 33... Ka6 {[%clk 0:00:12.6]} 34. Qc8+ {[%clk
0:01:21.8]} 34... Kb6 {[%clk 0:00:11.3]} 35. Qb8+ {[%clk 0:01:21.7]} 35... Ka6
{[%clk 0:00:11.7]} 36. Qc8+ {[%clk 0:00:42.9]} 36... Kb6 {[%clk 0:00:10.7]} 37.
Qd8+ {[%clk 0:00:43.3]} 37... Ka6 {[%clk 0:00:10.8]} 38. Qd3+ {[%clk 0:00:43.5]}
38... Kb6 {[%clk 0:00:10.7]} 39. f3 {[%clk 0:00:43.8]} 39... g5 {[%clk
0:00:10.1]} 40. Qe4 {[%clk 0:00:43.8]} 40... Nc5 {[%clk 0:00:09.6]} 41. Qb4+
{[%clk 0:00:43.4]} 41... Kc7 {[%clk 0:00:08.2]} 42. Qxc5 {[%clk 0:00:44.1]}
42... Qg6+ {[%clk 0:00:07.6]} 43. Ka1 {[%clk 0:00:44.2]} 43... Qc2 {[%clk
0:00:07.7]} 44. Qd6+ {[%clk 0:00:43.9]} 44... Kb6 {[%clk 0:00:07.9]} 45. Qd4+
{[%clk 0:00:44]} 45... Kb7 {[%clk 0:00:07.8]} 46. Rd2 {[%clk 0:00:41.7]} 46...
Qc1+ {[%clk 0:00:07.1]} 47. Ka2 {[%clk 0:00:42.1]} 47... a5 {[%clk 0:00:05.7]}
48. g3 {[%clk 0:00:38.7]} 48... a4 {[%clk 0:00:03.5]} 49. Re2 {[%clk 0:00:37.3]}
49... a3 {[%clk 0:00:01]} 50. Re7+ {[%clk 0:00:37]} 50... Ka6 {[%clk 0:00:01.7]}
51. Qa4+ {[%clk 0:00:36.9]} 51... Kb6 {[%clk 0:00:01.9]} 52. Qa7+ {[%clk
0:00:35.5]} 52... Kb5 {[%clk 0:00:02]} 53. Re5+ {[%clk 0:00:35.9]} 53... Kc4
{[%clk 0:00:02.1]} 54. Qd4# {[%clk 0:00:36]} 1-0